Cogmind - Beta 15 @@@ ROGUE MODE // 2025.10.09 @ 17:22:11 Player: Sooty Result: Destroyed by FB-4C3(R) with Subdweller Machine Gun Performance ------------- Evolutions (0) 0 Regions Visited (2) 400 Robots Destroyed (7) 35 Value Destroyed (123) 123 Prototype IDs (0) 0 Alien Tech Used (0) 0 Bonus (0) 0 TOTAL SCORE: 558 Bonus ------- None Cogmind --------- Core Integrity 0/250 Matter 280/300 Energy 122/200 System Corruption 0% Temperature Cool (0) Movement Rolling (110) Location -10/Subcaves Parts ------- > --- POWER (1) -------- Subdweller Power Source > --- PROPULSION (2) --- Subdweller Monowheel > --- UTILITY (2) ------ Small Storage Unit > --- WEAPON (2) ------- (None) > --- INVENTORY (8) ---- (None) Peak State ------------ > --- POWER ------------ Light Ion Engine > --- PROPULSION ------- Compact Wheel Compact Wheel > --- UTILITY ---------- Small Storage Unit > --- WEAPON ----------- Assault Rifle Barrage Gun > --- INVENTORY -------- Ion Engine Subdweller Power Source Wheel EM Pulse Gun [Rating: 8] Favorites ----------- Power Light Ion Engine Engine Light Ion Engine Propulsion Compact Wheel Wheel Compact Wheel Utility Small Storage Unit Storage Small Storage Unit Weapon Assault Rifle Energy Gun EM Pulse Gun Ballistic Gun Assault Rifle Build | -11 -10 -10 ------- Run | Yrd Mat Sub Slots Evolved . | . . . Power . | . . . Propulsion . | . . . Utility . | . . . Weapon . | . . . Parts Attached 11 | 5 . 6 Power 3 | 1 . 2 Engine 3 | 1 . 2 Core . | . . . Reactor . | . . . Propulsion 4 | 2 . 2 Treads . | . . . Leg . | . . . Wheel 4 | 2 . 2 Hover . | . . . Flight . | . . . Utility 1 | 1 . . Device . | . . . Storage 1 | 1 . . Processor . | . . . Hackware . | . . . Protection . | . . . Artifact . | . . . Weapon 3 | 1 . 2 Energy Gun 1 | . . 1 Energy Cannon . | . . . Ballistic Gun 2 | 1 . 1 Ballistic Cannon . | . . . Launcher . | . . . Special Weapon . | . . . Impact Weapon . | . . . Slashing Weapon . | . . . Piercing Weapon . | . . . Special Melee Weapon . | . . . Unidentified Prototypes . | . . . Parts Lost 7 | . . 7 Power 1 | . . 1 Propulsion 3 | . . 3 Utility . | . . . Weapon 3 | . . 3 Highest Loss Streak 4 | . . 4 To Critical Strikes . | . . . Average Backups 3 | 1 3 3 Power 1 | . 1 1 Propulsion . | . 1 . Utility . | . . . Weapon . | . 1 . Tool/Special . | . . . Unused Backups . | . . . Power . | . . . Propulsion . | . . . Utility . | . . . Weapon . | . . . Tool/Special . | . . . Average Slot Usage (%) 66 | . 71 66 Engine 11 | . 14 11 Wheel 24 | . 28 24 Storage 14 | . 14 14 Energy Gun 2 | . . 2 Ballistic Gun 12 | . 14 12 Peak Build Rating 8 | 5 5 8 Average Rating 5 | 4 5 5 On Entrance 3 | . 5 5 Naked Turns . | . . . Heaviest Build 15 | 10 10 15 Greatest Support 32 | 32 32 32 Greatest Overweight (x) 1 | . . 1 Average Overweight (x) . | . . . Largest Inventory Capacity 8 | 8 8 8 Average Capacity 7 | 7 8 8 Most Carried 5 | 3 3 5 Average Carried 3 | 1 3 3 Final Capacity 8 | 8 8 8 Final Carried 3 | 3 3 . Class Distribution -------------------- 100% | Mutant Dominant Class ---------------- Mutant | -10/Materials Mutant | -10/Subcaves Resources | -11 -10 -10 ----------- Run | Yrd Mat Sub Matter Collected 442 | 187 . 255 Remotely . | . . . Salvage Created 276 | 126 . 150 Parts 14 | 4 . 10 Haulers Intercepted . | . . . Recyclers Shooed 1 | 1 . . Parts Field Recycled . | . . . Retrieved Matter . | . . . Parts Self-Destructed 5 | . . 5 Prevented 1 | . . 1 Kills | -11 -10 -10 ------- Run | Yrd Mat Sub Combat Hostiles Destroyed 5 | . . 5 Guns 5 | . . 5 Classes Destroyed 4 | 2 . 2 Tunneler 1 | 1 . . Recycler 1 | 1 . . Swarmer 3 | . . 3 Subdweller 2 | . . 2 Best Kill Streak 3 | 2 . 3 Combat Bots Only 3 | . . 3 Max Kills in Single Turn 1 | 1 . 1 Gunslinging . | . . . Exploded . | . . . Melee . | . . . Uniques/NPCs Destroyed . | . . . Combat | -11 -10 -10 -------- Run | Yrd Mat Sub Hostile Shots Fired 92 | . . 92 Missed 27 | . . 27 Hits 65 | . . 65 Projectile 65 | . . 65 Damage Taken 766 | . . 766 Core 261 | . . 261 Absorbed by Shields . | . . . Core Remaining (%) 100 | 100 . . Volleys Fired 40 | 9 . 31 Largest 2 | 1 . 2 Hottest 68 | 20 . 68 Shots Fired 55 | 9 . 46 Gun 55 | 9 . 46 Cannon . | . . . Launcher . | . . . Special . | . . . Kinetic 47 | 9 . 38 Thermal . | . . . Explosive . | . . . Electromagnetic 8 | . . 8 Robot Hit Streak 8 | 5 . 8 Robot Miss Streak 2 | 1 . 2 Penetration Max . | . . . Secondary Targets 1 | . . 1 Max Gunslinging Chain 1 | . . 1 Shots Hit Robots 32 | 7 . 25 Core Hits 9 | 3 . 6 Critical Kills . | . . . Critical Parts Destroyed . | . . . Critical Strikes . | . . . Melee Attacks . | . . . Impact . | . . . Slashing . | . . . Piercing . | . . . Sneak Attacks . | . . . Combat Hostiles . | . . . Follow-up Attacks . | . . . Damage Inflicted 453 | 87 . 366 Guns 453 | 87 . 366 Cannons . | . . . Explosions . | . . . Melee . | . . . Ramming . | . . . Kinetic 400 | 87 . 313 Thermal . | . . . Explosive . | . . . Electromagnetic 53 | . . 53 Impact . | . . . Slashing . | . . . Piercing . | . . . Highest Corruption . | . . . Average Corruption . | . . . Corruption Purged . | . . . Corruption Blocked . | . . . Overload Shots . | . . . Overflow Damage . | . . . Projectiles . | . . . Explosions . | . . . Melee . | . . . Knockbacks . | . . . Impact . | . . . Kinetic . | . . . Secondary . | . . . Self-Inflicted Damage . | . . . Shots . | . . . Rammed . | . . . Targets Rammed . | . . . Kicked . | . . . Crushed . | . . . Highest Temperature . | . . . Average Temperature . | . . . Received Heat Transfer 189 | . . 189 Siege Activations . | . . . Martial Activations . | . . . Shielding Activations . | . . . Robots Disrupted . | . . . Combat Hostiles . | . . . Robots Corrupted . | . . . Combat Hostiles . | . . . Parts Fried . | . . . Impact Corruptions . | . . . Robots Melted . | . . . Combat Hostiles . | . . . Parts Melted . | . . . Heat Transferred . | . . . Parts Sabotaged . | . . . Parts Stolen . | . . . Parts Stripped . | . . . Power Chain Reactions . | . . . Alert | -11 -10 -10 ------- Run | Yrd Mat Sub Maximum Alert Level . | . . . Low Security (%) 100 | 100 100 . Level 1 . | . . . Level 2 . | . . . Level 3 . | . . . Level 4 . | . . . Level 5 . | . . . High Security . | . . . Max Security . | . . . Peak Influence 5 | 5 . . Initial . | . . . Average . | . . . Influence Increases 235 | 10 . 225 Destroy 0b10 Robot/C 60 | . . 60 Destroy 0b10 Robot/NC 10 | 10 . . Lose Combat Pursuer 165 | . . 165 Influence Decreases 132 | 10 . 122 Time Decay 82 | 10 . 72 Lost Part 50 | . . 50 Squads Dispatched . | . . . Investigation . | . . . Extermination . | . . . Reinforcement . | . . . Assault . | . . . Garrison . | . . . Intercept . | . . . Searches Triggered . | . . . Construction Impeded . | . . . Haulers Reinforced . | . . . Active Scanning Responses . | . . . Cargo Convoy Interrupts . | . . . Stealth | -11 -10 -10 --------- Run | Yrd Mat Sub Distress Signals . | . . . Communications Jammed . | . . . Distress Signals . | . . . Times Spotted 14 | . . 14 Peak Tracking Total 5 | . . 5 Tactical Retreats 4 | . . 4 Traps | -11 -10 -10 ------- Run | Yrd Mat Sub Traps Triggered . | . . . Indirectly . | . . . Trap Hack Attempts . | . . . Triggered . | . . . Disarmed . | . . . Reprogrammed . | . . . Reused . | . . . Traps Extracted . | . . . Installed . | . . . Triggered . | . . . Machines | -11 -10 -10 ---------- Run | Yrd Mat Sub Machines Disabled . | . . . Max in Single Turn . | . . . Machines Repaired . | . . . Machines Dismantled . | . . . Machines Sabotaged . | . . . Overloaded Fab Kills . | . . . Hacking | -11 -10 -10 --------- Run | Yrd Mat Sub Machines Accessed . | . . . Terminals . | . . . Fabricators . | . . . Repair Stations . | . . . Recycling Units . | . . . Scanalyzers . | . . . Garrison Access . | . . . Total Hacks . | . . . Successful . | . . . Failed . | . . . Catastrophic . | . . . Database Lockouts . | . . . Manual . | . . . Terminals . | . . . Fabricators . | . . . Repair Stations . | . . . Recycling Units . | . . . Scanalyzers . | . . . Garrison Access . | . . . Terminal Hacks . | . . . Fabricator Hacks . | . . . Repair Station Hacks . | . . . Recycling Unit Hacks . | . . . Scanalyzer . | . . . Garrison Access Hacks . | . . . Unauthorized Hacks . | . . . Terminals . | . . . Fabricators . | . . . Repair Stations . | . . . Recycling Units . | . . . Scanalyzers . | . . . Garrison Access . | . . . Data Cores Recovered . | . . . Used . | . . . Hacking Detections . | . . . Full Trace Events . | . . . Feedback Events . | . . . Feedback Blocked . | . . . Robot Schematics Acquired . | . . . Robots Built . | . . . Authchips . | . . . Time . | . . . Total Robot Build Rating . | . . . Part Schematics Acquired . | . . . Parts Built . | . . . Authchips . | . . . Time . | . . . Total Part Build Rating . | . . . Parts Repaired . | . . . Time . | . . . Parts Recycled . | . . . Recycled Matter . | . . . Retrieved Matter . | . . . Retrieved Components . | . . . Parts Scanalyzed . | . . . Part Schematics Acquired . | . . . Parts Damaged . | . . . Bothacking | -11 -10 -10 ------------ Run | Yrd Mat Sub Used RIF Installer . | . . . Robots Hacked . | . . . Non-combat . | . . . Combat . | . . . Robot Hacks Applied . | . . . Relay Couplers Released . | . . . Fabnet Peak Effective % . | . . . Robots Rewired . | . . . Allies Hacked . | . . . Hacks Repelled . | . . . Allies | -11 -10 -10 -------- Run | Yrd Mat Sub Total Allies . | . . . Largest Group . | . . . Highest-Rated Group . | . . . Highest-Rated Ally . | . . . Total Orders . | . . . Ally Attacks . | . . . Total Damage . | . . . Kills . | . . . Allies Corrupted . | . . . Allies Melted . | . . . Intel | -11 -10 -10 ------- Run | Yrd Mat Sub Active Infowar (turns) . | . . . Robot Analysis Total . | . . . Derelict Logs Recovered 1 | . . 1 Drone Launches . | . . . Drone Recoveries . | . . . Exploration | -11 -10 -10 ------------- Run | Yrd Mat Sub Turns Passed 847 | 65 24 758 Spaces Moved 707 | 35 15 657 Core 6 | 3 . 3 Treads . | . . . Legs . | . . . Wheels 701 | 32 15 654 Hover . | . . . Flight . | . . . Fastest Speed 50 | 50 100 90 Average Speed 98 | 95 100 98 Slowest Speed 110 | 100 100 110 Overloaded Moves . | . . . Propulsion Burnouts . | . . . Robots Hopped . | . . . Potential Cave-ins . | . . . Cave-ins Triggered . | . . . Exploration Rate (%) 15 | 3 3 40 Regions Visited 2 Branch Regions 1 Pre-discovered Areas . | . . . Known Exits Taken . | . . . Unknown Exits Taken 2 | 1 1 . Scrap Searched 2 | . . 2 Spaces Dug . | . . . Terrain Destroyed . | . . . Melee . | . . . Projectile . | . . . AOE . | . . . Terrain Rammed . | . . . Walls Destroyed . | . . . Machines Disabled . | . . . Actions | -11 -10 -10 --------- Run | Yrd Mat Sub Total 806 | 57 24 725 Wait 37 | . 10 27 Move 705 | 34 14 657 Hop . | . . . Pick Up 11 | 8 . 3 Fast Attach . | . . . Attach 10 | 5 . 5 Detach . | . . . Swap 2 | 1 . 1 Drop 1 | . . 1 Fire 40 | 9 . 31 Melee . | . . . Ram . | . . . Kick . | . . . Crush . | . . . Escape Stasis . | . . . Rewire . | . . . Trap . | . . . Miscellaneous . | . . . Route ------- -11/Scrapyard -10/Materials -10/Subcaves (discovered 2 exits: [*Rec] / [Scr]) History --------- Turn | Location | Event 22 | -11/Scrapyard | Discovered new exit (range 15) 66 | -11/Scrapyard | Entered Materials 67 | -10/Materials | Met a group of wandering Federalists 88 | -10/Materials | Discovered new exit (range 3) 90 | -10/Materials | Entered Subcaves 90 | -10/Subcaves | Accompanied by 1 ally 91 | -10/Subcaves | Continued accompanying wandering Federalists (5) 91 | -10/Subcaves | Approached by a straggling Scientist 140 | -10/Subcaves | Shifting Twisted Machinery released Sub. Power Source 183 | -10/Subcaves | Shifting Twisted Machinery released Battle Cannon 186 | -10/Subcaves | Shifting Twisted Machinery released Mak. Spear 226 | -10/Subcaves | A swath of the cavern ceiling suddenly collapsed 314 | -10/Subcaves | Build established: Mutant 331 | -10/Subcaves | Wandering Federalist uncovered a shortcut to Scraptown 665 | -10/Subcaves | Core integrity fell below 50% 701 | -10/Subcaves | Discovered new exit (range 14) 734 | -10/Subcaves | Lost 4 parts (1p1n2w) 798 | -10/Subcaves | Core integrity fell below 20% 848 | -10/Subcaves | Destroyed by FB-4C3(R) with Subdweller Machine Gun Last Messages --------------- 00646_ Acquired derelict log, extracted data. Data stored: Storage entrances (x1). 00671_ S-10 Pest destroyed. 00675_ Barrage Gun destroyed. 00680_ Flight Unit self-destruct mechanism malfunctions. 00683_ Lgt. Assault Rifle fries itself beyond repair. 00686_ S-10 Pest destroyed. 00688_ Acquired 3 matter. 00688_ EM Pulse Gun destroyed. 00688_ Wheel destroyed. 00694_ Flight Unit fries itself beyond repair. 00698_ Lgt. Ion Engine fries itself beyond repair. 00700_ Lgt. Assault Rifle fries itself beyond repair. 00701_ EXIT=FOUND 00703_ Ion Engine destroyed. 00840_ Com. Wheel destroyed. Map ----- +----------------------------------------------------+ | ????????????????????????????????????????????? | | ????????????????????????????????????????????? | | ????????????????????????????????????????????? | | ????????????????????????????????????????????? | | ????????????????????????????????????????????? | | ????????????????????????????????????????????? | | ????????????????????????????????????????????? | | ????????????????????????????????????????????? | | ????????????????????????????????????????????? | | ????????????????????????????????????????????? | | ????????????????????????????????????????????? | | ????????????????????????????????????????????? | | ????????????????????????????????????????????? | | ????????????????????????????????????????????# | | ???????????????????????????????????????????## | | ???????????????????????????????????????????? | | ?????????????????????????????????????###????? | | ?????????????????????????????????????#" #???? | | ?????????????????????????????????????# ##?? | | ????????????????????????????????????## #? | | ???????????????????????????????????##" ## | | ?????????????????????????????????"" " | | ?????????????????????????????????"" " ## | | ????????????????#????????????????"""" ## | | ???????????????## ?######???????"""" #? | | ???????????????# #@## #???????#""" ## | | ???????????????# R ##???????#"""" ## | | ???????????????## R ###??????#""" "" # | | ????????????????### ## ## #??????#" "" " # | | ??????????????????#### R ##???????# #? | | ???????????????????## ## #????????### ##? | | ???????????????????# # #???????## # #?? | | ???????????????????## ## #??????## #?? | | ????????????????????# ##?????## #### | | ????????????????????### ##????## ### | | ??????????????????????## ###### #### ### | | ???????????????????????## ## ##??# # | | ????????????????????????##""## ##???# | | ?????????????????????????## # # #???## | | ??????????????????????????## #?##????# # ### | | ???????????????????????????###???????### ##?? | | ???????????????????????????????????????###??? | | ????????????????????????????????????????????? | | ????????????????????????????????????????????? | | ????????????????????????????????????????????? | | ????????????????????????????????????????????? | | ????????????????????????????????????????????? | | ????????????????????????????????????????????? | | ????????????????????????????????????????????? | | ????????????????????????????????????????????? | +----------------------------------------------------+ Best States ------------- Heat Dissipation 25 Energy Generation 10 Energy Capacity 250 Matter Stores 300 Matter Capacity 300 Sight Range 16 Terrain Scan Density 10 Evasion (%) 42 Item Schematics ----------------- None Robot Schematics ------------------ None Fabricated ------------ Nothing Repaired ---------- Nothing Alien Tech Used ----------------- None Achievements -------------- None Challenges ------------ None Game ------ Seed BehemothCouplerDeflector Manual? 0 Play Time 00:15:47 Cumulative 19.9 hours Start 2025.10.09 @ 16:54:51 End 2025.10.09 @ 17:22:11 Sessions 1 Manual Loads 0 Difficulty Rogue Special Mode None Game No. 23 Rogue 23 Adventurer 0 Explorer 0 Win Type - Total 0 Types 0/0/0/0/0/0/0/0/0/0 Lore% 11 Gallery% 21 Achievement% 19 Wizard Run 0 Options --------- Layout 1 ASCII 0 Keyboard 0 Movement Mouse Keybinds 0 Fullscreen 1 Font 24/Terminus Map View 50x35 Zoom Use 0% Tactical HUD 1 Map Filters NONE Filters NONE Steam 1 RUN: a7853c5d-564f-4b70-b033-486f16be8193